[Event "Titled Tuesday Blitz February 07 Early 2023"]
[White "Iljin, Timofey"]
[Black "Mrudul Dehankar"]
[WhiteFideId "14110180"]
[BlackFideId "25096990"]
[WhiteElo "2329"]
[BlackElo "2030"]
[Result "1-0"]
[Round "08"]
[TimeControl "180+2"]
[Date "2023.02.07"]
[WhiteClock "0:01:34"]
[BlackClock "0:00:41"]

1. d4 {[%clk 0:03:00]}  Nf6 {[%clk 0:02:52]} 2. c4 {[%clk 0:03:01]}  e6 {[%clk 0:02:51]} 3. Nc3 {[%clk 0:03:01]}  Bb4 {[%clk 0:02:51]} 4. e3 {[%clk 0:03:01]}  b6 {[%clk 0:02:47]} 5. a3 {[%clk 0:03:02]}  Bxc3+ {[%clk 0:02:46]} 6. bxc3 {[%clk 0:03:03]}  Bb7 {[%clk 0:02:46]} 7. f3 {[%clk 0:03:04]}  c5 {[%clk 0:02:39]} 8. Bd3 {[%clk 0:03:05]}  O-O {[%clk 0:02:39]} 9. Ne2 {[%clk 0:03:05]}  d5 {[%clk 0:02:39]} 10. cxd5 {[%clk 0:03:06]}  Qxd5 {[%clk 0:02:37]} 11. O-O {[%clk 0:03:04]}  cxd4 {[%clk 0:02:31]} 12. cxd4 {[%clk 0:02:49]}  e5 {[%clk 0:02:25]} 13. e4 {[%clk 0:02:35]}  Qd6 {[%clk 0:02:18]} 14. d5 {[%clk 0:02:29]}  Nbd7 {[%clk 0:02:17]} 15. Ng3 {[%clk 0:02:30]}  Rac8 {[%clk 0:02:12]} 16. Nf5 {[%clk 0:02:28]}  Qc5+ {[%clk 0:02:07]} 17. Be3 {[%clk 0:02:27]}  Qa5 {[%clk 0:01:53]} 18. Ne7+ {[%clk 0:02:21]}  Kh8 {[%clk 0:01:54]} 19. Nxc8 {[%clk 0:02:22]}  Rxc8 {[%clk 0:01:54]} 20. Rc1 {[%clk 0:02:23]}  Rxc1 {[%clk 0:01:50]} 21. Qxc1 {[%clk 0:02:23]}  Ne8 {[%clk 0:01:51]} 22. Bd2 {[%clk 0:02:09]}  Qa4 {[%clk 0:01:46]} 23. Qb2 {[%clk 0:02:02]}  a6 {[%clk 0:01:30]} 24. Qb4 {[%clk 0:02:01]}  Qxb4 {[%clk 0:01:26]} 25. axb4 {[%clk 0:02:01]}  Nd6 {[%clk 0:01:20]} 26. Rc1 {[%clk 0:01:56]}  Ne8 {[%clk 0:01:11]} 27. Ra1 {[%clk 0:01:53]}  b5 {[%clk 0:01:10]} 28. Be3 {[%clk 0:01:53]}  Kg8 {[%clk 0:01:10]} 29. Bc5 {[%clk 0:01:41]}  f6 {[%clk 0:01:06]} 30. Bxb5 {[%clk 0:01:36]}  axb5 {[%clk 0:00:49]} 31. Ra7 {[%clk 0:01:37]}  Nxc5 {[%clk 0:00:43]} 32. bxc5 {[%clk 0:01:38]}  Bc8 {[%clk 0:00:42]} 33. Ra8 {[%clk 0:01:38]}  Bd7 {[%clk 0:00:42]} 34. c6 {[%clk 0:01:38]}  Bxc6 {[%clk 0:00:41]} 35. dxc6 {[%clk 0:01:39]}  Kf7 {[%clk 0:00:41]} 36. c7 {[%clk 0:01:34]} 1-0


[Site "https://www.chess.com"]

[Event "Titled Tuesday Blitz February 07 Early 2023"]
[White "Lacasa Diaz, Jose Antonio"]
[Black "Ramirez Allo, Eduardo"]
[WhiteFideId "2203375"]
[BlackFideId "2224178"]
[WhiteElo "2359"]
[BlackElo "2274"]
[Result "0-1"]
[Round "08"]
[TimeControl "180+2"]
[Date "2023.02.07"]
[WhiteClock "0:02:34"]
[BlackClock "0:02:39"]

1. e4 {[%clk 0:03:00]}  c5 {[%clk 0:02:59]} 2. Nf3 {[%clk 0:02:59]}  d6 {[%clk 0:03:00]} 3. Bb5+ {[%clk 0:02:58]}  Nd7 {[%clk 0:03:00]} 4. a4 {[%clk 0:02:57]}  Nf6 {[%clk 0:02:59]} 5. Nc3 {[%clk 0:02:56]}  e6 {[%clk 0:02:59]} 6. a5 {[%clk 0:02:55]}  Be7 {[%clk 0:02:59]} 7. O-O {[%clk 0:02:54]}  O-O {[%clk 0:02:59]} 8. d4 {[%clk 0:02:50]}  cxd4 {[%clk 0:02:52]} 9. Qxd4 {[%clk 0:02:49]}  a6 {[%clk 0:02:51]} 10. Be2 {[%clk 0:02:45]}  Qc7 {[%clk 0:02:51]} 11. Rd1 {[%clk 0:02:39]}  Ne5 {[%clk 0:02:38]} 12. Bf4 {[%clk 0:02:34]}  Nxf3+ {[%clk 0:02:38]} 13. Bxf3 {[%clk 0:02:34]}  e5 {[%clk 0:02:39]} 0-1


[Site "https://www.chess.com"]

[Event "Titled Tuesday Blitz February 07 Early 2023"]
[White "Kaplan, Avi Harrison"]
[Black "Fathy, Elameir"]
[WhiteFideId "30934559"]
[BlackFideId "10600396"]
[WhiteElo "2146"]
[BlackElo "2300"]
[Result "1-0"]
[Round "08"]
[TimeControl "180+2"]
[Date "2023.02.07"]
[WhiteClock "0:00:08"]
[BlackClock "0:00:02"]

1. a3 {[%clk 0:03:00]}  d5 {[%clk 0:02:59]} 2. Nf3 {[%clk 0:03:00]}  Bf5 {[%clk 0:03:00]} 3. c4 {[%clk 0:03:00]}  c6 {[%clk 0:02:55]} 4. Qb3 {[%clk 0:02:54]}  Nd7 {[%clk 0:02:41]} 5. cxd5 {[%clk 0:02:51]}  Nc5 {[%clk 0:02:39]} 6. Qe3 {[%clk 0:02:26]}  Qxd5 {[%clk 0:02:31]} 7. Nc3 {[%clk 0:02:25]}  Qd6 {[%clk 0:02:05]} 8. Nd4 {[%clk 0:02:13]}  Bg6 {[%clk 0:02:01]} 9. b4 {[%clk 0:02:06]}  Nd7 {[%clk 0:02:01]} 10. Bb2 {[%clk 0:02:06]}  Ngf6 {[%clk 0:02:01]} 11. g3 {[%clk 0:02:06]}  e5 {[%clk 0:01:59]} 12. Nf3 {[%clk 0:01:59]}  Be7 {[%clk 0:01:58]} 13. h3 {[%clk 0:01:58]}  O-O {[%clk 0:01:53]} 14. Bg2 {[%clk 0:01:57]}  Rfe8 {[%clk 0:01:47]} 15. O-O {[%clk 0:01:56]}  Bf8 {[%clk 0:01:48]} 16. Rac1 {[%clk 0:01:56]}  Nd5 {[%clk 0:01:45]} 17. Nxd5 {[%clk 0:01:51]}  cxd5 {[%clk 0:01:46]} 18. d3 {[%clk 0:01:38]}  e4 {[%clk 0:01:36]} 19. dxe4 {[%clk 0:01:33]}  Bxe4 {[%clk 0:01:23]} 20. Qd4 {[%clk 0:01:25]}  Nb6 {[%clk 0:01:11]} 21. Rfd1 {[%clk 0:01:23]}  Rac8 {[%clk 0:00:59]} 22. Kh2 {[%clk 0:01:11]}  Nc4 {[%clk 0:00:51]} 23. Ba1 {[%clk 0:01:05]}  a6 {[%clk 0:00:44]} 24. Nd2 {[%clk 0:00:55]}  Nxd2 {[%clk 0:00:42]} 25. Qxd2 {[%clk 0:00:52]}  Qe6 {[%clk 0:00:29]} 26. Bxe4 {[%clk 0:00:43]}  dxe4 {[%clk 0:00:20]} 27. e3 {[%clk 0:00:43]}  Qf5 {[%clk 0:00:17]} 28. Qe2 {[%clk 0:00:38]}  b5 {[%clk 0:00:12]} 29. Kg2 {[%clk 0:00:38]}  h5 {[%clk 0:00:11]} 30. h4 {[%clk 0:00:33]}  Red8 {[%clk 0:00:10]} 31. Rxc8 {[%clk 0:00:32]}  Rxc8 {[%clk 0:00:10]} 32. Rd4 {[%clk 0:00:29]}  Be7 {[%clk 0:00:07]} 33. Qd1 {[%clk 0:00:22]}  Bf6 {[%clk 0:00:05]} 34. Rd5 {[%clk 0:00:13]}  Qf3+ {[%clk 0:00:06]} 35. Kg1 {[%clk 0:00:14]}  Bxa1 {[%clk 0:00:03]} 36. Qxa1 {[%clk 0:00:12]}  Rc2 {[%clk 0:00:04]} 37. Qf1 {[%clk 0:00:06]}  Qf6 {[%clk 0:00:02]} 38. Rd4 {[%clk 0:00:05]}  Rb2 {[%clk 0:00:02]} 39. Qg2 {[%clk 0:00:05]}  Ra2 {[%clk 0:00:01]} 40. Rxe4 {[%clk 0:00:04]}  Ra1+ {[%clk 0:00:02]} 41. Kh2 {[%clk 0:00:05]}  g6 {[%clk 0:00:03]} 42. Rf4 {[%clk 0:00:05]}  Qe6 {[%clk 0:00:03]} 43. Qf3 {[%clk 0:00:04]}  Ra2 {[%clk 0:00:03]} 44. Qa8+ {[%clk 0:00:03]}  Kg7 {[%clk 0:00:03]} 45. Qf3 {[%clk 0:00:04]}  Kg8 {[%clk 0:00:03]} 46. Kg2 {[%clk 0:00:04]}  Rxa3 {[%clk 0:00:03]} 47. Qa8+ {[%clk 0:00:04]}  Kg7 {[%clk 0:00:03]} 48. Qb7 {[%clk 0:00:05]}  Ra2 {[%clk 0:00:03]} 49. Qf3 {[%clk 0:00:02]}  Rc2 {[%clk 0:00:03]} 50. Re4 {[%clk 0:00:02]}  Qc6 {[%clk 0:00:04]} 51. Rf4 {[%clk 0:00:03]}  Qxf3+ {[%clk 0:00:04]} 52. Rxf3 {[%clk 0:00:04]}  Rc4 {[%clk 0:00:05]} 53. Rf4 {[%clk 0:00:05]}  Rxf4 {[%clk 0:00:06]} 54. gxf4 {[%clk 0:00:05]}  Kf6 {[%clk 0:00:06]} 55. Kf3 {[%clk 0:00:06]}  Ke6 {[%clk 0:00:07]} 56. e4 {[%clk 0:00:06]}  f6 {[%clk 0:00:06]} 57. Ke3 {[%clk 0:00:06]}  Kd6 {[%clk 0:00:07]} 58. Kd4 {[%clk 0:00:07]}  Kc6 {[%clk 0:00:07]} 59. e5 {[%clk 0:00:07]}  fxe5+ {[%clk 0:00:05]} 60. fxe5 {[%clk 0:00:08]}  Kd7 {[%clk 0:00:02]} 61. f4 {[%clk 0:00:08]}  Ke6 {[%clk 0:00:02]} 62. Kc5 {[%clk 0:00:09]}  Kf5 {[%clk 0:00:03]} 63. Kb6 {[%clk 0:00:09]}  g5 {[%clk 0:00:02]} 64. fxg5 {[%clk 0:00:08]}  Kxe5 {[%clk 0:00:02]} 65. Kxa6 {[%clk 0:00:08]} 1-0


[Site "https://www.chess.com"]

[Event "Titled Tuesday Blitz February 07 Early 2023"]
[White "Marn, Jan"]
[Black "Jiganchine, Roman"]
[WhiteFideId "14619245"]
[BlackFideId "2603667"]
[WhiteElo "2345"]
[BlackElo "2205"]
[Result "1-0"]
[Round "08"]
[TimeControl "180+2"]
[Date "2023.02.07"]
[WhiteClock "0:00:18"]
[BlackClock "0:00:32"]

1. d4 {[%clk 0:02:59]}  d5 {[%clk 0:02:59]} 2. Nf3 {[%clk 0:02:58]}  Nf6 {[%clk 0:02:59]} 3. e3 {[%clk 0:02:59]}  Bf5 {[%clk 0:02:53]} 4. Nh4 {[%clk 0:02:47]}  e6 {[%clk 0:02:45]} 5. Nxf5 {[%clk 0:02:41]}  exf5 {[%clk 0:02:44]} 6. c4 {[%clk 0:02:42]}  c6 {[%clk 0:02:43]} 7. Nc3 {[%clk 0:02:42]}  Be7 {[%clk 0:02:38]} 8. cxd5 {[%clk 0:02:06]}  cxd5 {[%clk 0:02:37]} 9. Qb3 {[%clk 0:02:02]}  Qd7 {[%clk 0:02:35]} 10. Bb5 {[%clk 0:01:52]}  Nc6 {[%clk 0:02:35]} 11. Bd2 {[%clk 0:01:47]}  O-O {[%clk 0:02:34]} 12. O-O {[%clk 0:01:47]}  Rfd8 {[%clk 0:02:06]} 13. Rfc1 {[%clk 0:01:46]}  Ne4 {[%clk 0:02:03]} 14. Nxe4 {[%clk 0:01:44]}  fxe4 {[%clk 0:02:03]} 15. Qa4 {[%clk 0:01:36]}  Rac8 {[%clk 0:01:52]} 16. Rc2 {[%clk 0:01:19]}  a6 {[%clk 0:01:50]} 17. Be2 {[%clk 0:00:54]}  Qe6 {[%clk 0:01:21]} 18. Rac1 {[%clk 0:00:48]}  h5 {[%clk 0:01:17]} 19. Bxh5 {[%clk 0:00:36]}  g6 {[%clk 0:01:17]} 20. Be2 {[%clk 0:00:34]}  Kg7 {[%clk 0:01:13]} 21. Bxa6 {[%clk 0:00:32]}  Rh8 {[%clk 0:00:59]} 22. Bxb7 {[%clk 0:00:31]}  Qd6 {[%clk 0:00:40]} 23. h3 {[%clk 0:00:20]}  Rxh3 {[%clk 0:00:33]} 24. gxh3 {[%clk 0:00:20]}  Rh8 {[%clk 0:00:32]} 25. Rxc6 {[%clk 0:00:19]}  Qd7 {[%clk 0:00:32]} 26. Rxg6+ {[%clk 0:00:18]} 1-0


[Site "https://www.chess.com"]

[Event "Titled Tuesday Blitz February 07 Early 2023"]
[White "Degenbaev, Aziz"]
[Black "Bruned, Boris"]
[WhiteFideId "13802640"]
[BlackFideId "621790"]
[WhiteElo "2203"]
[BlackElo "2133"]
[Result "1-0"]
[Round "08"]
[TimeControl "180+2"]
[Date "2023.02.07"]
[WhiteClock "0:00:07"]
[BlackClock "0:00:03"]

1. e4 {[%clk 0:01:23]}  b6 {[%clk 0:02:59]} 2. d4 {[%clk 0:01:23]}  Bb7 {[%clk 0:02:59]} 3. Nc3 {[%clk 0:01:23]}  e6 {[%clk 0:02:59]} 4. a3 {[%clk 0:01:24]}  Nf6 {[%clk 0:02:52]} 5. Bd3 {[%clk 0:01:24]}  c5 {[%clk 0:02:51]} 6. Nf3 {[%clk 0:01:21]}  cxd4 {[%clk 0:02:51]} 7. Nxd4 {[%clk 0:01:21]}  Bc5 {[%clk 0:02:51]} 8. Nb3 {[%clk 0:01:21]}  O-O {[%clk 0:02:29]} 9. O-O {[%clk 0:01:21]}  Qc7 {[%clk 0:02:19]} 10. Nxc5 {[%clk 0:01:18]}  bxc5 {[%clk 0:02:17]} 11. Bg5 {[%clk 0:01:17]}  c4 {[%clk 0:02:00]} 12. Bxf6 {[%clk 0:00:48]}  gxf6 {[%clk 0:01:56]} 13. Be2 {[%clk 0:00:47]}  Kh8 {[%clk 0:01:11]} 14. Qd4 {[%clk 0:00:44]}  Qe5 {[%clk 0:01:06]} 15. Qxe5 {[%clk 0:00:43]}  fxe5 {[%clk 0:01:07]} 16. Bxc4 {[%clk 0:00:44]}  Nc6 {[%clk 0:00:40]} 17. Nb5 {[%clk 0:00:44]}  Na5 {[%clk 0:00:37]} 18. Bd3 {[%clk 0:00:39]}  d5 {[%clk 0:00:37]} 19. Nd6 {[%clk 0:00:30]}  Bc6 {[%clk 0:00:37]} 20. b4 {[%clk 0:00:27]}  Nb7 {[%clk 0:00:34]} 21. Nxb7 {[%clk 0:00:27]}  Bxb7 {[%clk 0:00:34]} 22. Rfe1 {[%clk 0:00:27]}  f6 {[%clk 0:00:32]} 23. exd5 {[%clk 0:00:24]}  exd5 {[%clk 0:00:33]} 24. c4 {[%clk 0:00:25]}  dxc4 {[%clk 0:00:25]} 25. Bxc4 {[%clk 0:00:25]}  Rac8 {[%clk 0:00:25]} 26. Be6 {[%clk 0:00:25]}  Rc6 {[%clk 0:00:22]} 27. Bd5 {[%clk 0:00:25]}  Rc7 {[%clk 0:00:21]} 28. Bxb7 {[%clk 0:00:25]}  Rxb7 {[%clk 0:00:22]} 29. Rac1 {[%clk 0:00:25]}  a5 {[%clk 0:00:15]} 30. bxa5 {[%clk 0:00:13]}  Rb5 {[%clk 0:00:12]} 31. a4 {[%clk 0:00:09]}  Rxa5 {[%clk 0:00:12]} 32. Rc4 {[%clk 0:00:10]}  Rfa8 {[%clk 0:00:12]} 33. Ree4 {[%clk 0:00:10]}  f5 {[%clk 0:00:10]} 34. Rh4 {[%clk 0:00:10]}  R8a7 {[%clk 0:00:09]} 35. h3 {[%clk 0:00:10]}  Kg7 {[%clk 0:00:09]} 36. Rb4 {[%clk 0:00:08]}  f4 {[%clk 0:00:06]} 37. Rg4+ {[%clk 0:00:07]}  Kf6 {[%clk 0:00:06]} 38. Rb6+ {[%clk 0:00:07]}  Kf7 {[%clk 0:00:06]} 39. Rh6 {[%clk 0:00:07]}  Kf8 {[%clk 0:00:03]} 40. Rh5 {[%clk 0:00:07]}  Kf7 {[%clk 0:00:03]} 41. Rgg5 {[%clk 0:00:07]}  Kf6 {[%clk 0:00:03]} 42. Rf5+ {[%clk 0:00:07]} 1-0


[Site "https://www.chess.com"]

[Event "Titled Tuesday Blitz February 07 Early 2023"]
[White "Nur-Mukhametova, Alisa"]
[Black "Larina, Maria"]
[WhiteFideId "54117739"]
[BlackFideId "24113182"]
[WhiteElo "2170"]
[BlackElo "1948"]
[Result "1-0"]
[Round "08"]
[TimeControl "180+2"]
[Date "2023.02.07"]
[WhiteClock "0:00:06"]
[BlackClock "0:00:04"]

1. Nf3 {[%clk 0:03:00]}  f5 {[%clk 0:02:59]} 2. g3 {[%clk 0:02:57]}  Nf6 {[%clk 0:02:58]} 3. Bg2 {[%clk 0:02:49]}  g6 {[%clk 0:02:59]} 4. O-O {[%clk 0:02:47]}  Bg7 {[%clk 0:02:58]} 5. d3 {[%clk 0:01:32]}  d6 {[%clk 0:02:56]} 6. Nc3 {[%clk 0:01:28]}  e5 {[%clk 0:02:54]} 7. e4 {[%clk 0:01:28]}  O-O {[%clk 0:02:53]} 8. Re1 {[%clk 0:01:26]}  Nc6 {[%clk 0:02:53]} 9. a3 {[%clk 0:01:03]}  f4 {[%clk 0:02:46]} 10. d4 {[%clk 0:00:47]}  Bg4 {[%clk 0:02:08]} 11. dxe5 {[%clk 0:00:46]}  Nxe5 {[%clk 0:01:27]} 12. gxf4 {[%clk 0:00:33]}  Nxf3+ {[%clk 0:01:21]} 13. Bxf3 {[%clk 0:00:33]}  Bxf3 {[%clk 0:01:21]} 14. Qxf3 {[%clk 0:00:34]}  Nh5 {[%clk 0:01:21]} 15. Qg4 {[%clk 0:00:28]}  c6 {[%clk 0:00:58]} 16. Be3 {[%clk 0:00:25]}  Qe7 {[%clk 0:00:55]} 17. Rad1 {[%clk 0:00:22]}  Rad8 {[%clk 0:00:54]} 18. Qg5 {[%clk 0:00:17]}  Bf6 {[%clk 0:00:52]} 19. Qg4 {[%clk 0:00:17]}  Bg7 {[%clk 0:00:43]} 20. Kh1 {[%clk 0:00:16]}  Nf6 {[%clk 0:00:42]} 21. Qg2 {[%clk 0:00:16]}  Rfe8 {[%clk 0:00:39]} 22. f3 {[%clk 0:00:16]}  Nh5 {[%clk 0:00:37]} 23. Qg4 {[%clk 0:00:16]}  Rf8 {[%clk 0:00:37]} 24. f5 {[%clk 0:00:15]}  Nf6 {[%clk 0:00:29]} 25. Qg5 {[%clk 0:00:15]}  gxf5 {[%clk 0:00:25]} 26. Qxf5 {[%clk 0:00:15]}  Nd5 {[%clk 0:00:22]} 27. Nxd5 {[%clk 0:00:11]}  cxd5 {[%clk 0:00:18]} 28. Qxd5+ {[%clk 0:00:12]}  Kh8 {[%clk 0:00:18]} 29. Bd4 {[%clk 0:00:11]}  Rg8 {[%clk 0:00:17]} 30. Rg1 {[%clk 0:00:10]}  Be5 {[%clk 0:00:15]} 31. Bxe5+ {[%clk 0:00:10]}  dxe5 {[%clk 0:00:12]} 32. Rxg8+ {[%clk 0:00:10]}  Rxg8 {[%clk 0:00:12]} 33. Qd6 {[%clk 0:00:09]}  Qg7 {[%clk 0:00:10]} 34. Qd2 {[%clk 0:00:07]}  h5 {[%clk 0:00:06]} 35. Qf2 {[%clk 0:00:06]}  Qg5 {[%clk 0:00:05]} 36. Rg1 {[%clk 0:00:06]}  Qd8 {[%clk 0:00:04]} 37. Rxg8+ {[%clk 0:00:04]}  Kxg8 {[%clk 0:00:05]} 38. Qg3+ {[%clk 0:00:04]}  Kh7 {[%clk 0:00:05]} 39. Qxe5 {[%clk 0:00:04]}  Qd1+ {[%clk 0:00:06]} 40. Kg2 {[%clk 0:00:05]}  Qxc2+ {[%clk 0:00:07]} 41. Kh3 {[%clk 0:00:05]}  Qf2 {[%clk 0:00:05]} 42. Qxh5+ {[%clk 0:00:05]}  Kg7 {[%clk 0:00:05]} 43. Qg4+ {[%clk 0:00:05]}  Kf7 {[%clk 0:00:05]} 44. Qf5+ {[%clk 0:00:05]}  Ke7 {[%clk 0:00:05]} 45. b4 {[%clk 0:00:05]}  Qb2 {[%clk 0:00:03]} 46. Qc5+ {[%clk 0:00:04]}  Kd7 {[%clk 0:00:03]} 47. Qxa7 {[%clk 0:00:04]}  Qc1 {[%clk 0:00:01]} 48. Qxb7+ {[%clk 0:00:03]}  Ke6 {[%clk 0:00:02]} 49. Qb6+ {[%clk 0:00:03]}  Ke7 {[%clk 0:00:03]} 50. Qf2 {[%clk 0:00:03]}  Qh6+ {[%clk 0:00:02]} 51. Kg2 {[%clk 0:00:03]}  Qg6+ {[%clk 0:00:03]} 52. Qg3 {[%clk 0:00:03]}  Qe6 {[%clk 0:00:03]} 53. h4 {[%clk 0:00:02]}  Qa2+ {[%clk 0:00:03]} 54. Kh3 {[%clk 0:00:03]}  Qxa3 {[%clk 0:00:04]} 55. Qg5+ {[%clk 0:00:03]}  Kf7 {[%clk 0:00:04]} 56. Qf5+ {[%clk 0:00:03]}  Ke8 {[%clk 0:00:03]} 57. b5 {[%clk 0:00:03]}  Qb4 {[%clk 0:00:03]} 58. h5 {[%clk 0:00:03]}  Ke7 {[%clk 0:00:03]} 59. h6 {[%clk 0:00:03]}  Qb2 {[%clk 0:00:03]} 60. Qg5+ {[%clk 0:00:02]}  Kf7 {[%clk 0:00:02]} 61. Qh5+ {[%clk 0:00:02]}  Kg8 {[%clk 0:00:02]} 62. Qg6+ {[%clk 0:00:02]}  Kf8 {[%clk 0:00:02]} 63. Qg7+ {[%clk 0:00:02]}  Qxg7 {[%clk 0:00:01]} 64. hxg7+ {[%clk 0:00:03]}  Kxg7 {[%clk 0:00:02]} 65. b6 {[%clk 0:00:04]}  Kf6 {[%clk 0:00:03]} 66. b7 {[%clk 0:00:04]}  Ke6 {[%clk 0:00:04]} 67. b8=Q {[%clk 0:00:05]}  Kd7 {[%clk 0:00:05]} 68. Qb6 {[%clk 0:00:05]}  Ke7 {[%clk 0:00:03]} 69. e5 {[%clk 0:00:06]}  Kd7 {[%clk 0:00:04]} 70. Qd6+ {[%clk 0:00:06]} 1-0


[Site "https://www.chess.com"]

[Event "Titled Tuesday Blitz February 07 Early 2023"]
[White "Miszler, Levente"]
[Black "Skliarov, Viktor"]
[WhiteFideId "763276"]
[BlackFideId "14106736"]
[WhiteElo "2271"]
[BlackElo "2383"]
[Result "0-1"]
[Round "08"]
[TimeControl "180+2"]
[Date "2023.02.07"]
[WhiteClock "0:00:13"]
[BlackClock "0:00:26"]

1. Nf3 {[%clk 0:03:00]}  g6 {[%clk 0:02:59]} 2. c4 {[%clk 0:03:00]}  Bg7 {[%clk 0:02:59]} 3. Nc3 {[%clk 0:03:01]}  c5 {[%clk 0:02:58]} 4. g3 {[%clk 0:03:01]}  Nc6 {[%clk 0:02:59]} 5. Bg2 {[%clk 0:03:01]}  Nf6 {[%clk 0:02:59]} 6. O-O {[%clk 0:03:01]}  O-O {[%clk 0:02:59]} 7. d3 {[%clk 0:03:01]}  d5 {[%clk 0:02:59]} 8. cxd5 {[%clk 0:03:02]}  Nxd5 {[%clk 0:02:59]} 9. Nxd5 {[%clk 0:03:03]}  Qxd5 {[%clk 0:03:00]} 10. Be3 {[%clk 0:03:04]}  Qd6 {[%clk 0:02:55]} 11. Rc1 {[%clk 0:03:02]}  Nd4 {[%clk 0:02:55]} 12. Nxd4 {[%clk 0:02:58]}  cxd4 {[%clk 0:02:55]} 13. Bf4 {[%clk 0:02:53]}  e5 {[%clk 0:02:53]} 14. Bd2 {[%clk 0:02:53]}  Qb6 {[%clk 0:02:47]} 15. Qb3 {[%clk 0:02:48]}  Be6 {[%clk 0:02:46]} 16. Qa3 {[%clk 0:02:46]}  Rfc8 {[%clk 0:02:38]} 17. Ba5 {[%clk 0:02:45]}  Qb5 {[%clk 0:02:30]} 18. Qb4 {[%clk 0:02:40]}  Qxb4 {[%clk 0:01:43]} 19. Bxb4 {[%clk 0:02:41]}  Rxc1 {[%clk 0:01:41]} 20. Rxc1 {[%clk 0:02:40]}  a5 {[%clk 0:01:42]} 21. Bd6 {[%clk 0:02:38]}  Bxa2 {[%clk 0:01:40]} 22. Bxb7 {[%clk 0:02:34]}  Re8 {[%clk 0:01:40]} 23. Rc8 {[%clk 0:02:31]}  Rxc8 {[%clk 0:01:34]} 24. Bxc8 {[%clk 0:02:31]}  f6 {[%clk 0:01:32]} 25. Bd7 {[%clk 0:02:26]}  Bb3 {[%clk 0:01:25]} 26. Kf1 {[%clk 0:02:21]}  Bf8 {[%clk 0:01:23]} 27. Bxf8 {[%clk 0:02:20]}  Kxf8 {[%clk 0:01:23]} 28. Ke1 {[%clk 0:02:20]}  Ke7 {[%clk 0:01:23]} 29. Bb5 {[%clk 0:02:21]}  Kd6 {[%clk 0:01:23]} 30. Kd2 {[%clk 0:02:20]}  f5 {[%clk 0:01:22]} 31. e3 {[%clk 0:02:20]}  Kc5 {[%clk 0:01:18]} 32. Be8 {[%clk 0:02:18]}  Kd6 {[%clk 0:01:08]} 33. f4 {[%clk 0:02:17]}  Ke6 {[%clk 0:00:53]} 34. Bb5 {[%clk 0:01:50]}  Kd6 {[%clk 0:00:52]} 35. fxe5+ {[%clk 0:01:38]}  Kxe5 {[%clk 0:00:52]} 36. Bc4 {[%clk 0:01:38]}  Bxc4 {[%clk 0:00:25]} 37. dxc4 {[%clk 0:01:39]}  dxe3+ {[%clk 0:00:25]} 38. Kxe3 {[%clk 0:01:40]}  a4 {[%clk 0:00:26]} 39. h4 {[%clk 0:01:34]}  h6 {[%clk 0:00:26]} 40. Kd3 {[%clk 0:00:25]}  g5 {[%clk 0:00:25]} 41. h5 {[%clk 0:00:23]}  f4 {[%clk 0:00:25]} 42. gxf4+ {[%clk 0:00:22]}  gxf4 {[%clk 0:00:25]} 43. c5 {[%clk 0:00:19]}  Kd5 {[%clk 0:00:25]} 44. c6 {[%clk 0:00:19]}  Kxc6 {[%clk 0:00:26]} 45. Ke4 {[%clk 0:00:19]}  Kc5 {[%clk 0:00:26]} 46. Kxf4 {[%clk 0:00:20]}  Kc4 {[%clk 0:00:26]} 47. Kf5 {[%clk 0:00:21]}  Kb3 {[%clk 0:00:27]} 48. Kg6 {[%clk 0:00:21]}  Kxb2 {[%clk 0:00:28]} 49. Kxh6 {[%clk 0:00:22]}  a3 {[%clk 0:00:28]} 50. Kh7 {[%clk 0:00:18]}  a2 {[%clk 0:00:28]} 51. h6 {[%clk 0:00:19]}  a1=Q {[%clk 0:00:28]} 52. Kg8 {[%clk 0:00:18]}  Qa8+ {[%clk 0:00:28]} 53. Kg7 {[%clk 0:00:18]}  Qb7+ {[%clk 0:00:28]} 54. Kg8 {[%clk 0:00:17]}  Qc8+ {[%clk 0:00:29]} 55. Kg7 {[%clk 0:00:17]}  Qd7+ {[%clk 0:00:29]} 56. Kg8 {[%clk 0:00:17]}  Qe8+ {[%clk 0:00:28]} 57. Kg7 {[%clk 0:00:16]}  Qe5+ {[%clk 0:00:26]} 58. Kg8 {[%clk 0:00:15]}  Qg5+ {[%clk 0:00:26]} 59. Kh7 {[%clk 0:00:13]}  Kc3 {[%clk 0:00:26]} 0-1


[Site "https://www.chess.com"]

[Event "Titled Tuesday Blitz February 07 Early 2023"]
[White "Alfaro, William"]
[Black "Royal, Shreyas"]
[WhiteFideId "6100457"]
[BlackFideId "448869"]
[WhiteElo "2134"]
[BlackElo "2438"]
[Result "0-1"]
[Round "08"]
[TimeControl "180+2"]
[Date "2023.02.07"]
[WhiteClock "0:01:04"]
[BlackClock "0:02:00"]

1. e4 {[%clk 0:03:00]}  c5 {[%clk 0:02:59]} 2. Nf3 {[%clk 0:02:59]}  d6 {[%clk 0:02:59]} 3. d4 {[%clk 0:02:58]}  cxd4 {[%clk 0:03:00]} 4. Nxd4 {[%clk 0:02:58]}  Nf6 {[%clk 0:03:00]} 5. Nc3 {[%clk 0:02:58]}  a6 {[%clk 0:03:01]} 6. Bg5 {[%clk 0:02:57]}  e6 {[%clk 0:03:01]} 7. f4 {[%clk 0:02:57]}  Qb6 {[%clk 0:03:00]} 8. a3 {[%clk 0:02:46]}  Nc6 {[%clk 0:02:58]} 9. Nxc6 {[%clk 0:02:43]}  Qxc6 {[%clk 0:02:56]} 10. Bd3 {[%clk 0:02:42]}  Be7 {[%clk 0:02:56]} 11. Bh4 {[%clk 0:02:23]}  b5 {[%clk 0:02:44]} 12. O-O {[%clk 0:02:21]}  Bb7 {[%clk 0:02:43]} 13. Qe2 {[%clk 0:02:20]}  e5 {[%clk 0:02:31]} 14. Bxf6 {[%clk 0:02:08]}  Bxf6 {[%clk 0:02:31]} 15. Nd5 {[%clk 0:02:08]}  Qc5+ {[%clk 0:02:31]} 16. Kh1 {[%clk 0:02:07]}  Bxd5 {[%clk 0:02:31]} 17. exd5 {[%clk 0:02:07]}  O-O {[%clk 0:02:29]} 18. f5 {[%clk 0:02:04]}  e4 {[%clk 0:02:26]} 19. Qxe4 {[%clk 0:02:02]}  Rfe8 {[%clk 0:02:23]} 20. Qf3 {[%clk 0:01:51]}  Bxb2 {[%clk 0:02:22]} 21. Rae1 {[%clk 0:01:42]}  Bf6 {[%clk 0:02:21]} 22. g4 {[%clk 0:01:39]}  h6 {[%clk 0:02:19]} 23. Kg2 {[%clk 0:01:33]}  Qxa3 {[%clk 0:02:19]} 24. Kg3 {[%clk 0:01:32]}  Qc3 {[%clk 0:02:16]} 25. Rxe8+ {[%clk 0:01:27]}  Rxe8 {[%clk 0:02:17]} 26. h4 {[%clk 0:01:27]}  Qd4 {[%clk 0:02:14]} 27. g5 {[%clk 0:01:15]}  hxg5 {[%clk 0:02:12]} 28. hxg5 {[%clk 0:01:16]}  Bxg5 {[%clk 0:02:12]} 29. f6 {[%clk 0:01:16]}  Re3 {[%clk 0:02:10]} 30. fxg7 {[%clk 0:01:12]}  Qf4+ {[%clk 0:02:05]} 31. Kg2 {[%clk 0:01:11]}  Rxf3 {[%clk 0:02:05]} 32. Rxf3 {[%clk 0:01:12]}  Qd2+ {[%clk 0:02:05]} 33. Rf2 {[%clk 0:01:12]}  Qe3 {[%clk 0:02:02]} 34. Rf3 {[%clk 0:01:13]}  Qe5 {[%clk 0:02:02]} 35. Rf5 {[%clk 0:01:11]}  Qe7 {[%clk 0:02:01]} 36. Kg3 {[%clk 0:01:09]}  Kxg7 {[%clk 0:02:01]} 37. Kg4 {[%clk 0:01:09]}  f6 {[%clk 0:02:02]} 38. Rf3 {[%clk 0:01:08]}  Qf7 {[%clk 0:01:59]} 39. Rh3 {[%clk 0:01:06]}  Qxd5 {[%clk 0:02:00]} 40. Rh7+ {[%clk 0:01:06]}  Kg8 {[%clk 0:02:00]} 41. Rd7 {[%clk 0:01:03]}  Qe6+ {[%clk 0:01:59]} 42. Bf5 {[%clk 0:01:03]}  Qe2+ {[%clk 0:01:59]} 43. Kg3 {[%clk 0:01:03]}  Qe3+ {[%clk 0:01:59]} 44. Kg4 {[%clk 0:01:03]}  Qf4+ {[%clk 0:01:59]} 45. Kh5 {[%clk 0:01:04]}  Qh4+ {[%clk 0:01:59]} 46. Kg6 {[%clk 0:01:04]}  Qh6# {[%clk 0:02:00]} 0-1


[Site "https://www.chess.com"]